{"text_format":"1","workbook":"xlsx","n_sheets":2,"sheets":["фин.план 2011г. 4900 ","Фин. план вар.1"],"not_rendered":{"charts":0,"images":0,"macros":0,"external_links":0,"defined_names":1,"comments":0,"pivot_tables":0},"unopened":[],"bounds":{"document_bytes":16777216,"sheet_cells":100000,"rows_first":2000,"rows_last":500,"rows_between":2000,"halvings":0,"cell_chars":16384,"cell_head_chars":4096},"cells_cut":0,"cells_raw":0,"read":"whole","date_system":"1900"}

{"sheet":"фин.план 2011г. 4900 ","index":0,"n_rows":42,"n_cols":15,"rows_kept":42,"cut":false,"hidden":false,"merged":[[41,4,41,8],[0,9,0,14],[2,9,2,14],[41,1,41,3],[3,2,3,11],[5,1,6,1],[5,2,5,9],[7,1,7,14],[5,11,5,13],[39,1,39,8],[10,1,10,14],[9,1,9,8],[39,11,39,13]]}
[null,null,null,null,null,null,null,null,null,"Утверждено общим собранием членов ТСЖ"]
[]
[null,null,null,null,null,null,null,null,null,"\" ___ \" ______________ 2011 года."]
[null,null,"Финансовый план 2011г. (тыс.руб.)"]
[]
[null,"Наименование","Членские взносы (4900руб.)",null,null,null,null,null,null,null,"электроэн.","Погашение задолженности",null,null,"остаток"]
[null,null,"охрана","рем.обсл.в/о","чистка дор. Благ-ство","ТБО","содерж. эл. Хоз.","авар.ситуац.","сод.ТСЖ","итого","тариф","чл.взн.","э/э","оч.соор.","бюдж.09г."]
[null,"Доходы"]
[null,"план:",1749.6,115,41,180,489.3,96,{"$f":"J18","v":1324.1},{"$f":"C9+D9+G9+E9+F9+H9+I9","v":3995},2402.4,1602.5840000000001,480.916,873.1,93.254000000000005]
[null,"Итого дохоная часть составляет:",null,null,null,null,null,null,null,{"$f":"J9+K9+O9","v":6490.6539999999995}]
[null,"Расходы"]
[null,"Охрана",1749.6,null,null,null,null,null,null,{"$f":"C12+O12","v":1749.6}]
[null,"Рем. и обсл.сист. в/о",null,115,null,null,null,null,null,{"$f":"D13","v":115}]
[null,"Чистка дорог, благ-во",null,null,41,null,null,null,null,{"$f":"E14","v":41}]
[null,"Вывоз ТБО",null,null,null,180,null,null,null,{"$f":"F15","v":180}]
[null,"Содержание эл.хоз.",null,null,null,null,489.3,null,null,{"$f":"G16","v":489.3}]
[null,"Ликв авар.сит.в/о",null,null,null,null,null,96,null,{"$f":"H17","v":96}]
[null,"Содержание ТСЖ",null,null,null,null,null,null,null,{"$f":"J19+J23+J24+J25+J26+J27+J28+J29+J30+J31","v":1324.1}]
[null,"З/пл",null,null,null,null,null,null,null,{"$f":"J22+J21+J20","v":729.6}]
[null,"Председатель ТСЖ",null,null,null,null,null,null,360,{"$f":"I20","v":360}]
[null,"Гл. бухгалтер",null,null,null,null,null,null,267,{"$f":"I21","v":267}]
[null,"Кассир",null,null,null,null,null,null,102.6,102.6]
[null,"Налог на з/пл",null,null,null,null,null,null,103.6,103.6]
[null,"Единый налог",null,null,null,null,null,null,80,80]
[null,"Обсл. Касс.аппарата",null,null,null,null,null,null,10,10]
[null,"Програм.обеспеч.",null,null,null,null,null,null,8,8]
[null,"Услуги связи",null,null,null,null,null,null,62.4,62.4]
[null,"Канц.товары",null,null,null,null,null,null,20,20]
[null,"Услуги банка",null,null,null,null,null,null,22.5,22.5]
[null,"Юридические услуги",null,null,null,null,null,null,120,120]
[null,"Аренда офиса",null,null,null,null,null,null,168,168]
[null,"Электроснабжение",null,null,null,null,null,null,null,{"$f":"J37+J36+J35+J34+J33","v":2710.7939999999999}]
[null,"Платежи за э/э",null,null,null,null,null,null,null,{"$f":"K33","v":2402.4},2402.4]
[null,"Наружное освещ.",null,null,null,null,null,null,null,46]
[null,"Очист.сооруж.",null,null,null,null,null,null,null,56.94]
[null,"Пост охраны",null,null,null,null,null,null,null,105.2]
[null,"Потери в сетях",null,null,null,null,null,null,null,100.254]
[null,"итого расходы:",{"$f":"SUM(C12:C37)","v":1749.6},{"$f":"SUM(D12:D37)","v":115},{"$f":"SUM(E12:E37)","v":41},{"$f":"SUM(F12:F37)","v":180},null,{"$f":"SUM(H12:H37)","v":96},{"$f":"SUM(I12:I37)","v":1324.1},{"$f":"J12+J13+J14+J15+J16+J17+J18+J33","v":6397.4},{"$f":"SUM(K12:K37)","v":2402.4},{"$f":"SUM(L12:L37)","v":0},{"$f":"SUM(M12:M37)","v":0},{"$f":"SUM(N12:N37)","v":0},{"$f":"SUM(O12:O37)","v":0}]
[null,"Остаток д/средств:",{"$f":"C9-C38","v":0},{"$f":"D9-D38","v":0},{"$f":"E9-E38","v":0},{"$f":"F9-F38","v":0},null,{"$f":"H9-H38","v":0},{"$f":"I9-I38","v":0},{"$f":"J10-J38","v":93.253999999999905},{"$f":"K9-K38","v":0},{"$f":"L9-L38","v":1602.5840000000001},{"$f":"M9-M38","v":480.916},{"$f":"N9-N38","v":873.1},{"$f":"O9-O38","v":93.254000000000005}]
[null,null,null,null,null,null,null,null,null,null,null,"Резервный фонд"]
[]
[null,"Списочная численность 70 человек",null,null,"Расчет произведен на 65 человек"]

{"sheet":"Фин. план вар.1","index":1,"n_rows":18,"n_cols":8,"rows_kept":18,"cut":false,"hidden":false,"merged":[[0,0,0,2],[1,0,1,2]]}
["\n\nУтверждено общим собранием членов ТСЖ \"Рассоха\"\n\" 01 \" февраля 2015 года.",null,null,"*",null,null,null,0]
["Состав ежемесячного сбора по коммунальным услугам и содержанию общего имущества для  домовладельцев на территории под управлением ТСЖ \"Рассоха\" \nс 1 января 2015 года"]
["№ п/п","Наименование","Взнос (руб)"]
[1,"Ежемесячный сбор, в том числе ",{"$f":"C5+C6+C7+C8+C9+C10+C11+C12+C14","v":5815}]
["1.1","Управление общим имуществом",1789]
["1.2","Сохранность  общего имущества ",2396]
["1.3","Содержание электросетей  поселка",205]
["1.4","Содержание уличного освещения ",42]
["1.5","Содержание и техническое обслуживание очистных сооружений поселка ",339]
["1.6","Содержание и эксплуатация канализационных сетей посёлка",125]
["1.7","Благоустройство и санитарное содержание мест общего пользования и проездов",310]
["1.8","Резервный фонд",393]
["2.","Коммунальные услуги, в том числе:"]
["2.1","Сбор  от домовладений и вывоз на полигон твердых бытовых отходов",216]
["3.","Без вывоза ТБО",5599]
["4.","Для лиц не внесших полностью взнос на ОС по решению собрания 2014г.","7  599"]
["5.","Потребление электроэнергии в местах общего пользованния по общим счетчикам"," по счетчикам"]
["6.","Индивидуальное электропотребление","по счетчику"]